[Event "Titled Tuesday Blitz April 26 Early 2022"]
[White "Reprintsev, Alexander"]
[Black "Allahverdiyeva, Ayan"]
[WhiteFideId "14100541"]
[BlackFideId "13412590"]
[WhiteElo "2108"]
[BlackElo "1910"]
[Result "0-1"]
[Round "05"]
[TimeControl "180+1"]
[Date "2022.04.26"]
[WhiteClock "0:00:49"]
[BlackClock "0:00:31"]

1. e4 {[%clk 0:02:49]}  c5 {[%clk 0:02:54]} 2. b3 {[%clk 0:02:49]}  g6 {[%clk 0:02:50]} 3. Bb2 {[%clk 0:02:48]}  Nf6 {[%clk 0:02:42]} 4. e5 {[%clk 0:02:49]}  Nd5 {[%clk 0:02:43]} 5. Nc3 {[%clk 0:02:48]}  Nxc3 {[%clk 0:02:36]} 6. dxc3 {[%clk 0:02:49]}  Bg7 {[%clk 0:02:35]} 7. Qd5 {[%clk 0:02:49]}  O-O {[%clk 0:02:34]} 8. Qxc5 {[%clk 0:02:41]}  d6 {[%clk 0:02:33]} 9. exd6 {[%clk 0:02:40]}  exd6 {[%clk 0:02:33]} 10. Qd5 {[%clk 0:02:36]}  Re8+ {[%clk 0:02:31]} 11. Be2 {[%clk 0:02:36]}  Bh6 {[%clk 0:02:04]} 12. c4 {[%clk 0:02:32]}  Qe7 {[%clk 0:02:00]} 13. Qd4 {[%clk 0:02:29]}  Qe5 {[%clk 0:01:41]} 14. Qxe5 {[%clk 0:02:27]}  dxe5 {[%clk 0:01:41]} 15. Nf3 {[%clk 0:02:26]}  Nc6 {[%clk 0:01:40]} 16. O-O {[%clk 0:02:26]}  Bf5 {[%clk 0:01:29]} 17. c3 {[%clk 0:02:12]}  Rad8 {[%clk 0:01:20]} 18. Rfd1 {[%clk 0:02:11]}  Bc2 {[%clk 0:01:17]} 19. Rd5 {[%clk 0:02:08]}  Be4 {[%clk 0:00:47]} 20. Rb5 {[%clk 0:01:35]}  Bxf3 {[%clk 0:00:41]} 21. Bxf3 {[%clk 0:01:34]}  e4 {[%clk 0:00:41]} 22. Bd1 {[%clk 0:01:26]}  Rd2 {[%clk 0:00:40]} 23. Ba3 {[%clk 0:01:14]}  e3 {[%clk 0:00:41]} 24. Bf3 {[%clk 0:01:08]}  e2 {[%clk 0:00:37]} 25. g3 {[%clk 0:00:52]}  e1=Q+ {[%clk 0:00:35]} 26. Rxe1 {[%clk 0:00:53]}  Rxe1+ {[%clk 0:00:35]} 27. Kg2 {[%clk 0:00:54]}  Be3 {[%clk 0:00:35]} 28. Bd5 {[%clk 0:00:49]}  Rxf2+ {[%clk 0:00:34]} 29. Kh3 {[%clk 0:00:50]}  Ree2 {[%clk 0:00:31]} 30. Rxb7 {[%clk 0:00:49]}  Rxh2+ {[%clk 0:00:30]} 31. Kg4 {[%clk 0:00:49]}  Ne5# {[%clk 0:00:31]} 0-1


[Site "https://www.chess.com"]

[Event "Titled Tuesday Blitz April 26 Early 2022"]
[White "Richter, Nils"]
[Black "Kucuksari, Kaan"]
[WhiteFideId "12990809"]
[BlackFideId "6380166"]
[WhiteElo "2243"]
[BlackElo "2305"]
[Result "1-0"]
[Round "05"]
[TimeControl "180+1"]
[Date "2022.04.26"]
[WhiteClock "0:00:21"]
[BlackClock "0:00:02"]

1. d4 {[%clk 0:02:52]}  d5 {[%clk 0:02:54]} 2. c4 {[%clk 0:02:49]}  c6 {[%clk 0:02:54]} 3. Nf3 {[%clk 0:02:49]}  Nf6 {[%clk 0:02:53]} 4. Nc3 {[%clk 0:02:47]}  e6 {[%clk 0:02:54]} 5. Bg5 {[%clk 0:02:43]}  Nbd7 {[%clk 0:02:53]} 6. e3 {[%clk 0:02:41]}  Ke7 {[%clk 0:02:53]} 7. Bd3 {[%clk 0:02:33]}  h6 {[%clk 0:02:52]} 8. Bxf6+ {[%clk 0:02:32]}  Kxf6 {[%clk 0:02:50]} 9. O-O {[%clk 0:02:27]}  g6 {[%clk 0:02:50]} 10. e4 {[%clk 0:02:26]}  dxe4 {[%clk 0:02:48]} 11. Nxe4+ {[%clk 0:02:26]}  Kg7 {[%clk 0:02:49]} 12. Qc2 {[%clk 0:02:20]}  Nf6 {[%clk 0:02:47]} 13. Rad1 {[%clk 0:02:18]}  b6 {[%clk 0:02:40]} 14. Rfe1 {[%clk 0:02:09]}  Bb7 {[%clk 0:02:38]} 15. c5 {[%clk 0:02:05]}  a5 {[%clk 0:02:30]} 16. Nxf6 {[%clk 0:02:03]}  Qxf6 {[%clk 0:02:29]} 17. Ne5 {[%clk 0:02:04]}  bxc5 {[%clk 0:02:24]} 18. dxc5 {[%clk 0:02:03]}  Rd8 {[%clk 0:02:24]} 19. Qc3 {[%clk 0:01:45]}  Rd5 {[%clk 0:02:22]} 20. Bf1 {[%clk 0:01:18]}  Rxc5 {[%clk 0:02:11]} 21. Qb3 {[%clk 0:01:14]}  Rxe5 {[%clk 0:02:09]} 22. Rxe5 {[%clk 0:01:09]}  Qxe5 {[%clk 0:02:10]} 23. Qxb7 {[%clk 0:01:09]}  Bc5 {[%clk 0:02:05]} 24. Qxc6 {[%clk 0:01:06]}  Qf5 {[%clk 0:01:57]} 25. Qf3 {[%clk 0:01:03]}  Qxf3 {[%clk 0:01:51]} 26. gxf3 {[%clk 0:01:04]}  Rb8 {[%clk 0:01:39]} 27. b3 {[%clk 0:01:03]}  Rb7 {[%clk 0:01:39]} 28. Bc4 {[%clk 0:01:02]}  e5 {[%clk 0:01:36]} 29. Kg2 {[%clk 0:01:02]}  g5 {[%clk 0:01:34]} 30. Rd8 {[%clk 0:01:01]}  Bb6 {[%clk 0:01:31]} 31. Rc8 {[%clk 0:00:59]}  Rd7 {[%clk 0:01:30]} 32. Rc6 {[%clk 0:00:59]}  Ba7 {[%clk 0:01:29]} 33. Ra6 {[%clk 0:00:58]}  Bd4 {[%clk 0:01:21]} 34. Rxa5 {[%clk 0:00:56]}  Bc3 {[%clk 0:01:17]} 35. Rd5 {[%clk 0:00:56]}  Ra7 {[%clk 0:01:15]} 36. a4 {[%clk 0:00:56]}  Bd4 {[%clk 0:01:02]} 37. a5 {[%clk 0:00:55]}  Rc7 {[%clk 0:00:54]} 38. a6 {[%clk 0:00:54]}  Re7 {[%clk 0:00:53]} 39. Kf1 {[%clk 0:00:51]}  h5 {[%clk 0:00:51]} 40. Ke2 {[%clk 0:00:51]}  h4 {[%clk 0:00:51]} 41. Kd3 {[%clk 0:00:51]}  Bxf2 {[%clk 0:00:50]} 42. b4 {[%clk 0:00:49]}  h3 {[%clk 0:00:49]} 43. Ke4 {[%clk 0:00:45]}  Ra7 {[%clk 0:00:27]} 44. b5 {[%clk 0:00:45]}  Bg1 {[%clk 0:00:26]} 45. Bf1 {[%clk 0:00:44]}  Rc7 {[%clk 0:00:24]} 46. Bxh3 {[%clk 0:00:44]}  Rc3 {[%clk 0:00:23]} 47. Kxe5 {[%clk 0:00:39]}  Rxf3 {[%clk 0:00:18]} 48. Bf5 {[%clk 0:00:38]}  Rf4 {[%clk 0:00:13]} 49. Rd7 {[%clk 0:00:28]}  Bxh2 {[%clk 0:00:13]} 50. Be4 {[%clk 0:00:25]}  Rf2+ {[%clk 0:00:06]} 51. Kd5 {[%clk 0:00:24]}  Rd2+ {[%clk 0:00:06]} 52. Kc6 {[%clk 0:00:25]}  Rc2+ {[%clk 0:00:07]} 53. Kb7 {[%clk 0:00:25]}  Rb2 {[%clk 0:00:07]} 54. b6 {[%clk 0:00:24]}  Bg1 {[%clk 0:00:07]} 55. Rd6 {[%clk 0:00:25]}  g4 {[%clk 0:00:05]} 56. a7 {[%clk 0:00:24]}  Bc5 {[%clk 0:00:06]} 57. Rc6 {[%clk 0:00:24]}  g3 {[%clk 0:00:04]} 58. a8=Q {[%clk 0:00:23]}  Bd4 {[%clk 0:00:03]} 59. Rc8 {[%clk 0:00:21]}  Bf2 {[%clk 0:00:04]} 60. Rg8+ {[%clk 0:00:21]}  Kh6 {[%clk 0:00:02]} 61. Qf8+ {[%clk 0:00:20]}  Kh5 {[%clk 0:00:02]} 62. Qxf7+ {[%clk 0:00:21]} 1-0


[Site "https://www.chess.com"]

[Event "Titled Tuesday Blitz April 26 Early 2022"]
[White "Rodrigues, Bruno Morado"]
[Black "Jaferian, Koosha"]
[WhiteFideId "2115654"]
[BlackFideId "12507440"]
[WhiteElo "2040"]
[BlackElo "2030"]
[Result "0-1"]
[Round "05"]
[TimeControl "180+1"]
[Date "2022.04.26"]
[WhiteClock "0:00:58"]
[BlackClock "0:00:52"]

1. d4 {[%clk 0:02:59]}  Nf6 {[%clk 0:03:00]} 2. Nc3 {[%clk 0:03:00]}  d5 {[%clk 0:02:59]} 3. Bg5 {[%clk 0:03:01]}  c5 {[%clk 0:02:59]} 4. e3 {[%clk 0:03:00]}  cxd4 {[%clk 0:02:59]} 5. Qxd4 {[%clk 0:03:01]}  Nc6 {[%clk 0:02:59]} 6. Qa4 {[%clk 0:03:01]}  e6 {[%clk 0:02:57]} 7. O-O-O {[%clk 0:03:01]}  Be7 {[%clk 0:02:53]} 8. Nf3 {[%clk 0:02:56]}  O-O {[%clk 0:02:53]} 9. e4 {[%clk 0:02:57]}  Qc7 {[%clk 0:02:26]} 10. exd5 {[%clk 0:02:50]}  Nxd5 {[%clk 0:02:24]} 11. Nxd5 {[%clk 0:02:47]}  exd5 {[%clk 0:02:17]} 12. Rxd5 {[%clk 0:02:48]}  Be6 {[%clk 0:02:16]} 13. Rd2 {[%clk 0:02:46]}  Rad8 {[%clk 0:02:05]} 14. Bd3 {[%clk 0:02:38]}  h6 {[%clk 0:01:54]} 15. Bxh6 {[%clk 0:02:05]}  gxh6 {[%clk 0:01:42]} 16. Qe4 {[%clk 0:02:05]}  Rxd3 {[%clk 0:01:37]} 17. Rxd3 {[%clk 0:02:06]}  Bf6 {[%clk 0:01:31]} 18. g4 {[%clk 0:01:28]}  Qb6 {[%clk 0:01:29]} 19. b3 {[%clk 0:01:14]}  Nb4 {[%clk 0:01:29]} 20. Re3 {[%clk 0:01:04]}  Nxa2+ {[%clk 0:01:28]} 21. Kd2 {[%clk 0:01:03]}  Rd8+ {[%clk 0:01:27]} 22. Ke1 {[%clk 0:01:02]}  Nc3 {[%clk 0:00:54]} 23. Qf4 {[%clk 0:00:58]}  Rd1# {[%clk 0:00:52]} 0-1


[Site "https://www.chess.com"]

[Event "Titled Tuesday Blitz April 26 Early 2022"]
[White "Sanchez Alvares, Kelvin Antonio"]
[Black "Djokic, Mihailo"]
[WhiteFideId "3906680"]
[BlackFideId "976440"]
[WhiteElo "2193"]
[BlackElo "2202"]
[Result "1-0"]
[Round "05"]
[TimeControl "180+1"]
[Date "2022.04.26"]
[WhiteClock "0:01:11"]
[BlackClock "0:00:25"]

1. e4 {[%clk 0:02:58]}  c5 {[%clk 0:02:59]} 2. Nf3 {[%clk 0:02:57]}  d6 {[%clk 0:03:00]} 3. d4 {[%clk 0:02:57]}  cxd4 {[%clk 0:03:01]} 4. Nxd4 {[%clk 0:02:58]}  Nf6 {[%clk 0:03:01]} 5. f3 {[%clk 0:02:57]}  Nc6 {[%clk 0:03:01]} 6. c4 {[%clk 0:02:56]}  g6 {[%clk 0:03:01]} 7. Nc3 {[%clk 0:02:56]}  Bg7 {[%clk 0:03:01]} 8. Be3 {[%clk 0:02:56]}  O-O {[%clk 0:03:01]} 9. Be2 {[%clk 0:02:56]}  Bd7 {[%clk 0:02:55]} 10. Nc2 {[%clk 0:02:55]}  a6 {[%clk 0:02:54]} 11. Qd2 {[%clk 0:02:55]}  Rc8 {[%clk 0:02:54]} 12. O-O {[%clk 0:02:53]}  h5 {[%clk 0:02:47]} 13. Rac1 {[%clk 0:02:50]}  Qc7 {[%clk 0:02:34]} 14. Nd5 {[%clk 0:02:47]}  Nxd5 {[%clk 0:02:31]} 15. cxd5 {[%clk 0:02:47]}  Ne5 {[%clk 0:02:28]} 16. Nd4 {[%clk 0:02:46]}  Qb8 {[%clk 0:02:24]} 17. Rxc8 {[%clk 0:02:43]}  Rxc8 {[%clk 0:02:23]} 18. Rc1 {[%clk 0:02:43]}  b5 {[%clk 0:02:21]} 19. b3 {[%clk 0:02:26]}  e6 {[%clk 0:02:12]} 20. f4 {[%clk 0:02:23]}  Ng4 {[%clk 0:02:11]} 21. Bxg4 {[%clk 0:02:22]}  hxg4 {[%clk 0:02:10]} 22. Nc6 {[%clk 0:02:17]}  Bxc6 {[%clk 0:02:06]} 23. Rxc6 {[%clk 0:02:03]}  Rxc6 {[%clk 0:02:06]} 24. dxc6 {[%clk 0:02:04]}  Qc7 {[%clk 0:02:04]} 25. Qc2 {[%clk 0:02:01]}  Kf8 {[%clk 0:01:46]} 26. a4 {[%clk 0:01:54]}  d5 {[%clk 0:01:43]} 27. exd5 {[%clk 0:01:48]}  exd5 {[%clk 0:01:42]} 28. axb5 {[%clk 0:01:48]}  axb5 {[%clk 0:01:41]} 29. Qc5+ {[%clk 0:01:47]}  Ke8 {[%clk 0:01:40]} 30. Qxd5 {[%clk 0:01:45]}  b4 {[%clk 0:01:37]} 31. Bc5 {[%clk 0:01:41]}  Bf6 {[%clk 0:01:30]} 32. Bxb4 {[%clk 0:01:33]}  Qa7+ {[%clk 0:00:52]} 33. Bc5 {[%clk 0:01:32]}  Qa1+ {[%clk 0:00:52]} 34. Kf2 {[%clk 0:01:32]}  g3+ {[%clk 0:00:47]} 35. hxg3 {[%clk 0:01:21]}  Qb2+ {[%clk 0:00:40]} 36. Kg1 {[%clk 0:01:16]}  Qc1+ {[%clk 0:00:25]} 37. Kh2 {[%clk 0:01:15]}  Qd1 {[%clk 0:00:25]} 38. Qxd1 {[%clk 0:01:11]} 1-0


[Site "https://www.chess.com"]

[Event "Titled Tuesday Blitz April 26 Early 2022"]
[White "Seo, Jung Min"]
[Black "Bortnyk, Olexandr"]
[WhiteFideId "1734687"]
[BlackFideId "14120828"]
[WhiteElo "2401"]
[BlackElo "2723"]
[Result "0-1"]
[Round "05"]
[TimeControl "180+1"]
[Date "2022.04.26"]
[WhiteClock "0:00:27"]
[BlackClock "0:00:06"]

1. d4 {[%clk 0:03:00]}  d6 {[%clk 0:02:58]} 2. e4 {[%clk 0:03:00]}  Nf6 {[%clk 0:02:58]} 3. Nc3 {[%clk 0:03:00]}  Nbd7 {[%clk 0:02:58]} 4. f4 {[%clk 0:02:59]}  e5 {[%clk 0:02:58]} 5. Nf3 {[%clk 0:03:00]}  exd4 {[%clk 0:02:58]} 6. Qxd4 {[%clk 0:03:00]}  c6 {[%clk 0:02:58]} 7. Be3 {[%clk 0:02:58]}  d5 {[%clk 0:02:59]} 8. exd5 {[%clk 0:02:58]}  Bc5 {[%clk 0:02:59]} 9. Qd3 {[%clk 0:02:51]}  Qe7 {[%clk 0:02:58]} 10. Kd2 {[%clk 0:02:50]}  cxd5 {[%clk 0:02:38]} 11. Re1 {[%clk 0:02:40]}  O-O {[%clk 0:02:36]} 12. Bd4 {[%clk 0:02:37]}  Qd6 {[%clk 0:02:31]} 13. Ne5 {[%clk 0:02:37]}  Qb6 {[%clk 0:02:24]} 14. Nxd7 {[%clk 0:02:25]}  Bxd7 {[%clk 0:02:14]} 15. Bxc5 {[%clk 0:02:01]}  Qxc5 {[%clk 0:02:14]} 16. Kc1 {[%clk 0:01:57]}  d4 {[%clk 0:02:13]} 17. Nd1 {[%clk 0:01:52]}  Rac8 {[%clk 0:02:04]} 18. Qd2 {[%clk 0:01:51]}  Qd5 {[%clk 0:01:50]} 19. Kb1 {[%clk 0:01:48]}  Ne4 {[%clk 0:01:50]} 20. Qc1 {[%clk 0:01:45]}  f5 {[%clk 0:01:14]} 21. Bd3 {[%clk 0:01:40]}  Bb5 {[%clk 0:01:13]} 22. Bxe4 {[%clk 0:01:24]}  fxe4 {[%clk 0:01:13]} 23. Qd2 {[%clk 0:01:25]}  Bc4 {[%clk 0:01:05]} 24. b3 {[%clk 0:01:16]}  e3 {[%clk 0:01:05]} 25. Qb4 {[%clk 0:01:01]}  Ba6 {[%clk 0:01:01]} 26. g3 {[%clk 0:01:01]}  Qg2 {[%clk 0:00:31]} 27. c4 {[%clk 0:00:51]}  b5 {[%clk 0:00:14]} 28. c5 {[%clk 0:00:49]}  Rfd8 {[%clk 0:00:09]} 29. Rhg1 {[%clk 0:00:45]}  Qd5 {[%clk 0:00:07]} 30. Nb2 {[%clk 0:00:42]}  Rxc5 {[%clk 0:00:07]} 31. Qa5 {[%clk 0:00:40]}  Bc8 {[%clk 0:00:05]} 32. Qxa7 {[%clk 0:00:40]}  Bf5+ {[%clk 0:00:06]} 33. Ka1 {[%clk 0:00:40]}  Ra8 {[%clk 0:00:07]} 34. Qb6 {[%clk 0:00:32]}  Qxb3 {[%clk 0:00:07]} 35. a4 {[%clk 0:00:27]}  Qa3# {[%clk 0:00:06]} 0-1


[Site "https://www.chess.com"]

[Event "Titled Tuesday Blitz April 26 Early 2022"]
[White "Sihite, Chelsie Monica Ignesias"]
[Black "Steil-Antoni, Fiona"]
[WhiteFideId "7101198"]
[BlackFideId "4001249"]
[WhiteElo "2224"]
[BlackElo "2059"]
[Result "1-0"]
[Round "05"]
[TimeControl "180+1"]
[Date "2022.04.26"]
[WhiteClock "0:01:34"]
[BlackClock "0:00:01"]

1. e4 {[%clk 0:02:56]}  e5 {[%clk 0:03:00]} 2. Nf3 {[%clk 0:02:56]}  Nc6 {[%clk 0:03:00]} 3. Bc4 {[%clk 0:02:56]}  Bc5 {[%clk 0:03:00]} 4. O-O {[%clk 0:02:56]}  Nf6 {[%clk 0:02:59]} 5. d4 {[%clk 0:02:56]}  Bxd4 {[%clk 0:02:59]} 6. Nxd4 {[%clk 0:02:56]}  Nxd4 {[%clk 0:02:30]} 7. Bg5 {[%clk 0:02:55]}  Ne6 {[%clk 0:02:23]} 8. Bh4 {[%clk 0:02:52]}  O-O {[%clk 0:02:23]} 9. Nc3 {[%clk 0:02:52]}  c6 {[%clk 0:02:21]} 10. Bxe6 {[%clk 0:02:47]}  fxe6 {[%clk 0:02:17]} 11. Bg3 {[%clk 0:02:44]}  d6 {[%clk 0:02:07]} 12. Qe2 {[%clk 0:02:44]}  Qe7 {[%clk 0:02:06]} 13. Rad1 {[%clk 0:02:44]}  Bd7 {[%clk 0:01:56]} 14. Qd3 {[%clk 0:02:38]}  Ne8 {[%clk 0:01:55]} 15. Rd2 {[%clk 0:02:33]}  Rd8 {[%clk 0:01:55]} 16. Nd1 {[%clk 0:02:33]}  Bc8 {[%clk 0:01:51]} 17. Qa3 {[%clk 0:02:33]}  a6 {[%clk 0:01:50]} 18. Bxe5 {[%clk 0:02:32]}  Qg5 {[%clk 0:01:31]} 19. Bc3 {[%clk 0:02:22]}  e5 {[%clk 0:01:22]} 20. Rd3 {[%clk 0:02:22]}  Kh8 {[%clk 0:01:18]} 21. Ba5 {[%clk 0:02:18]}  Rd7 {[%clk 0:01:14]} 22. Rg3 {[%clk 0:02:16]}  Qf4 {[%clk 0:01:09]} 23. Qe3 {[%clk 0:02:15]}  Rdf7 {[%clk 0:01:07]} 24. Bd2 {[%clk 0:02:13]}  Qf6 {[%clk 0:00:58]} 25. Qd3 {[%clk 0:02:11]}  h6 {[%clk 0:00:51]} 26. Ne3 {[%clk 0:02:02]}  Be6 {[%clk 0:00:49]} 27. c4 {[%clk 0:02:01]}  b5 {[%clk 0:00:48]} 28. b3 {[%clk 0:02:02]}  Qh4 {[%clk 0:00:36]} 29. f3 {[%clk 0:01:57]}  Rf6 {[%clk 0:00:24]} 30. Be1 {[%clk 0:01:55]}  Qh5 {[%clk 0:00:23]} 31. Ng4 {[%clk 0:01:51]}  Bxg4 {[%clk 0:00:20]} 32. Rxg4 {[%clk 0:01:51]}  Qxg4 {[%clk 0:00:20]} 33. fxg4 {[%clk 0:01:52]}  Rxf1+ {[%clk 0:00:20]} 34. Qxf1 {[%clk 0:01:53]}  Rxf1+ {[%clk 0:00:21]} 35. Kxf1 {[%clk 0:01:53]}  Kg8 {[%clk 0:00:19]} 36. Ke2 {[%clk 0:01:53]}  Kf7 {[%clk 0:00:18]} 37. Bh4 {[%clk 0:01:52]}  Ke6 {[%clk 0:00:17]} 38. cxb5 {[%clk 0:01:51]}  cxb5 {[%clk 0:00:16]} 39. Kd3 {[%clk 0:01:49]}  Nc7 {[%clk 0:00:15]} 40. a4 {[%clk 0:01:48]}  d5 {[%clk 0:00:14]} 41. Bd8 {[%clk 0:01:47]}  Ne8 {[%clk 0:00:12]} 42. h3 {[%clk 0:01:45]}  Kd7 {[%clk 0:00:10]} 43. Ba5 {[%clk 0:01:43]}  Kc6 {[%clk 0:00:10]} 44. Bc3 {[%clk 0:01:43]}  Kd6 {[%clk 0:00:09]} 45. Bb4+ {[%clk 0:01:43]}  Ke6 {[%clk 0:00:09]} 46. Bf8 {[%clk 0:01:43]}  Kf7 {[%clk 0:00:08]} 47. Bc5 {[%clk 0:01:42]}  Ke6 {[%clk 0:00:09]} 48. exd5+ {[%clk 0:01:41]}  Kxd5 {[%clk 0:00:09]} 49. Bf8 {[%clk 0:01:41]}  Ke6 {[%clk 0:00:07]} 50. axb5 {[%clk 0:01:38]}  axb5 {[%clk 0:00:08]} 51. Kc3 {[%clk 0:01:38]}  Kf7 {[%clk 0:00:08]} 52. Bc5 {[%clk 0:01:38]}  g6 {[%clk 0:00:08]} 53. Kb4 {[%clk 0:01:38]}  Nc7 {[%clk 0:00:06]} 54. Bd6 {[%clk 0:01:38]}  Nd5+ {[%clk 0:00:06]} 55. Kc5 {[%clk 0:01:38]}  Ke6 {[%clk 0:00:07]} 56. Bf8 {[%clk 0:01:36]}  h5 {[%clk 0:00:06]} 57. gxh5 {[%clk 0:01:36]}  gxh5 {[%clk 0:00:07]} 58. Bh6 {[%clk 0:01:36]}  e4 {[%clk 0:00:04]} 59. Kd4 {[%clk 0:01:35]}  Kf5 {[%clk 0:00:02]} 60. Kxd5 {[%clk 0:01:35]}  h4 {[%clk 0:00:01]} 61. Be3 {[%clk 0:01:34]} 1-0


[Site "https://www.chess.com"]

[Event "Titled Tuesday Blitz April 26 Early 2022"]
[White "Simonovic, Miroslav"]
[Black "Minko, Dmitry"]
[WhiteFideId "919152"]
[BlackFideId "24188468"]
[WhiteElo "2043"]
[BlackElo "1928"]
[Result "0-1"]
[Round "05"]
[TimeControl "180+1"]
[Date "2022.04.26"]
[WhiteClock "0:00:01"]
[BlackClock "0:00:36"]

1. d4 {[%clk 0:03:00]}  d5 {[%clk 0:02:58]} 2. Bg5 {[%clk 0:03:01]}  Nd7 {[%clk 0:02:56]} 3. e3 {[%clk 0:03:01]}  Ngf6 {[%clk 0:02:56]} 4. c4 {[%clk 0:03:01]}  e6 {[%clk 0:02:54]} 5. Nc3 {[%clk 0:03:01]}  Be7 {[%clk 0:02:53]} 6. f4 {[%clk 0:03:01]}  c5 {[%clk 0:02:46]} 7. Nf3 {[%clk 0:02:49]}  cxd4 {[%clk 0:02:27]} 8. exd4 {[%clk 0:02:43]}  O-O {[%clk 0:02:22]} 9. Ne5 {[%clk 0:02:29]}  h6 {[%clk 0:02:18]} 10. Bh4 {[%clk 0:02:22]}  dxc4 {[%clk 0:01:52]} 11. Bxc4 {[%clk 0:02:22]}  Nd5 {[%clk 0:01:53]} 12. Bxe7 {[%clk 0:02:20]}  Qxe7 {[%clk 0:01:53]} 13. Nxd5 {[%clk 0:01:57]}  exd5 {[%clk 0:01:52]} 14. Bxd5 {[%clk 0:01:58]}  Nxe5 {[%clk 0:01:07]} 15. fxe5 {[%clk 0:01:27]}  Rd8 {[%clk 0:01:07]} 16. Qb3 {[%clk 0:01:14]}  Qh4+ {[%clk 0:01:06]} 17. g3 {[%clk 0:01:08]}  Qxd4 {[%clk 0:01:02]} 18. Bxf7+ {[%clk 0:01:07]}  Kh8 {[%clk 0:01:03]} 19. Rd1 {[%clk 0:00:40]}  Qxe5+ {[%clk 0:00:51]} 20. Kf2 {[%clk 0:00:36]}  Bg4 {[%clk 0:00:41]} 21. Rxd8+ {[%clk 0:00:08]}  Rxd8 {[%clk 0:00:42]} 22. Qe3 {[%clk 0:00:05]}  Qxb2+ {[%clk 0:00:36]} 23. Kg1 {[%clk 0:00:01]}  Rd1+ {[%clk 0:00:36]} 0-1


[Site "https://www.chess.com"]

[Event "Titled Tuesday Blitz April 26 Early 2022"]
[White "Sovetbekova, Nurai"]
[Black "Begunov, Konstantin"]
[WhiteFideId "13801910"]
[BlackFideId "4118510"]
[WhiteElo "1538"]
[BlackElo "2262"]
[Result "1-0"]
[Round "05"]
[TimeControl "180+1"]
[Date "2022.04.26"]
[WhiteClock "0:00:07"]
[BlackClock "0:00:09"]

1. d4 {[%clk 0:02:54]}  d5 {[%clk 0:02:58]} 2. c4 {[%clk 0:02:54]}  c6 {[%clk 0:02:58]} 3. Nf3 {[%clk 0:02:53]}  Nf6 {[%clk 0:02:58]} 4. g3 {[%clk 0:02:53]}  Bg4 {[%clk 0:02:57]} 5. Ne5 {[%clk 0:02:51]}  Bf5 {[%clk 0:02:56]} 6. cxd5 {[%clk 0:02:42]}  cxd5 {[%clk 0:02:56]} 7. Nc3 {[%clk 0:02:39]}  e6 {[%clk 0:02:55]} 8. Qa4+ {[%clk 0:02:15]}  Nbd7 {[%clk 0:02:49]} 9. Bg2 {[%clk 0:01:59]}  Bd6 {[%clk 0:02:45]} 10. O-O {[%clk 0:01:55]}  O-O {[%clk 0:02:43]} 11. Nxd7 {[%clk 0:01:52]}  Qxd7 {[%clk 0:02:36]} 12. Qxd7 {[%clk 0:01:49]}  Nxd7 {[%clk 0:02:37]} 13. Nb5 {[%clk 0:01:46]}  Be7 {[%clk 0:02:29]} 14. Bf4 {[%clk 0:01:44]}  a6 {[%clk 0:02:29]} 15. Nd6 {[%clk 0:01:41]}  g5 {[%clk 0:02:12]} 16. Nxf5 {[%clk 0:01:27]}  exf5 {[%clk 0:02:07]} 17. Bd2 {[%clk 0:01:22]}  Nb6 {[%clk 0:01:53]} 18. Rac1 {[%clk 0:01:14]}  Rac8 {[%clk 0:01:45]} 19. b3 {[%clk 0:00:56]}  Rc6 {[%clk 0:00:43]} 20. Ba5 {[%clk 0:00:43]}  Rb8 {[%clk 0:00:18]} 21. Bxb6 {[%clk 0:00:35]}  Rxb6 {[%clk 0:00:19]} 22. Bxd5 {[%clk 0:00:34]}  Rd6 {[%clk 0:00:18]} 23. Bg2 {[%clk 0:00:25]}  Rxd4 {[%clk 0:00:18]} 24. Rc7 {[%clk 0:00:25]}  Bd6 {[%clk 0:00:16]} 25. Rxb7 {[%clk 0:00:17]}  Rxb7 {[%clk 0:00:15]} 26. Bxb7 {[%clk 0:00:18]}  a5 {[%clk 0:00:16]} 27. e3 {[%clk 0:00:11]}  Rd2 {[%clk 0:00:17]} 28. a4 {[%clk 0:00:11]}  Kg7 {[%clk 0:00:16]} 29. Ba6 {[%clk 0:00:10]}  Kf6 {[%clk 0:00:16]} 30. Bc4 {[%clk 0:00:10]}  f4 {[%clk 0:00:16]} 31. exf4 {[%clk 0:00:09]}  gxf4 {[%clk 0:00:17]} 32. Kg2 {[%clk 0:00:09]}  Kg6 {[%clk 0:00:14]} 33. Kf3 {[%clk 0:00:09]}  f6 {[%clk 0:00:12]} 34. gxf4 {[%clk 0:00:08]}  Kf5 {[%clk 0:00:12]} 35. Re1 {[%clk 0:00:07]}  Bxf4 {[%clk 0:00:12]} 36. Be6+ {[%clk 0:00:07]}  Kg5 {[%clk 0:00:10]} 37. Rg1+ {[%clk 0:00:07]}  Kh4 {[%clk 0:00:09]} 38. Kxf4 {[%clk 0:00:07]}  Rxf2+ {[%clk 0:00:10]} 39. Ke3 {[%clk 0:00:07]}  Rxh2 {[%clk 0:00:09]} 40. Rg4+ {[%clk 0:00:07]}  Kh5 {[%clk 0:00:09]} 41. Rf4 {[%clk 0:00:06]}  Kg5 {[%clk 0:00:09]} 42. Rf5+ {[%clk 0:00:06]}  Kg6 {[%clk 0:00:09]} 43. Rxa5 {[%clk 0:00:07]}  Rh1 {[%clk 0:00:08]} 44. Bd5 {[%clk 0:00:06]}  Rb1 {[%clk 0:00:07]} 45. Be4+ {[%clk 0:00:06]}  Kh6 {[%clk 0:00:06]} 46. Bxb1 {[%clk 0:00:07]}  f5 {[%clk 0:00:06]} 47. Rxf5 {[%clk 0:00:06]}  Kg6 {[%clk 0:00:05]} 48. Rf1+ {[%clk 0:00:06]}  Kh6 {[%clk 0:00:06]} 49. a5 {[%clk 0:00:07]}  Kg5 {[%clk 0:00:07]} 50. a6 {[%clk 0:00:08]}  h5 {[%clk 0:00:07]} 51. a7 {[%clk 0:00:08]}  Kg4 {[%clk 0:00:08]} 52. a8=Q {[%clk 0:00:08]}  h4 {[%clk 0:00:09]} 53. Qg2+ {[%clk 0:00:08]}  Kh5 {[%clk 0:00:09]} 54. Qg6# {[%clk 0:00:07]} 1-0


[Site "https://www.chess.com"]